bitfinex/quotes_BTCUSD_20230114
["timestamp","ask_amount","ask_price","bid_price","bid_amount"]
[1673708440340,0.19775349,20881.0,20876.0,0.958036]
[1673708440581,0.00702754,20881.0,20877.0,0.47447366]
[1673708440843,0.00702754,20881.0,20878.0,1.61137766]
[1673708440844,2.995,20879.0,20878.0,1.61137766]
[1673708441093,2.995,20879.0,20878.0,2.24690242]
[1673708441342,2.995,20879.0,20878.0,2.65128487]
[1673708441589,2.995,20879.0,20878.0,2.96450101]
[1673708441861,2.995,20879.0,20878.0,2.18729932]
[1673708442099,0.02907205,20874.0,20872.0,0.479102]
[1673708442350,0.02907205,20874.0,20873.0,0.55410169]
[1673708442593,0.02907205,20874.0,20873.0,1.93568418]
[1673708443092,0.02907205,20874.0,20873.0,2.03568418]
[1673708443337,0.03007205,20874.0,20873.0,2.03568418]
[1673708443581,0.03007205,20874.0,20873.0,2.81288587]
[1673708443839,0.03007205,20874.0,20873.0,1.299151]
[1673708443840,0.246008,20874.0,20873.0,1.299151]
[1673708444086,0.246008,20874.0,20873.0,0.264077]
[1673708444342,0.566711,20874.0,20867.0,0.479212]
[1673708444594,0.40394895,20873.0,20867.0,0.479212]
[1673708444845,0.40394895,20873.0,20865.0,0.47926]
[1673708444846,0.51142895,20872.0,20865.0,0.47926]
[1673708445092,0.579156,20870.0,20863.0,0.479303]
[1673708445335,0.579156,20870.0,20861.0,0.7793763]
[1673708445342,0.51142895,20869.0,20861.0,0.7793763]
[1673708445595,0.88315995,20868.0,20867.0,0.138]
[1673708445838,0.88315995,20868.0,20861.0,0.3000353]
[1673708445839,1.02421082,20868.0,20861.0,0.3000353]
[1673708446092,1.02421082,20868.0,20863.0,0.138]
[1673708446093,0.1,20866.0,20863.0,0.138]
[1673708446344,0.1,20866.0,20861.0,0.3000353]
[1673708446345,0.88321995,20865.0,20861.0,0.3000353]
[1673708446602,0.51142895,20864.0,20861.0,3.53e-05]
[1673708446840,0.68418284,20867.0,20861.0,3.53e-05]
[1673708446841,0.213223,20863.0,20861.0,3.53e-05]
[1673708447091,0.1,20866.0,20861.0,3.53e-05]
[1673708447343,1.2438,20867.0,20862.0,0.17447366]
[1673708447585,0.0769,20868.0,20863.0,0.17447366]
[1673708447832,0.1,20871.0,20864.0,0.17447366]
[1673708448085,0.003,20866.0,20865.0,0.17447366]
[1673708448332,0.1,20871.0,20861.0,0.4793833]
[1673708448583,0.555414,20872.0,20863.0,0.138]
[1673708448584,0.003,20868.0,20863.0,0.138]
[1673708448832,0.19072595,20868.0,20863.0,0.17447366]
[1673708449076,0.003,20866.0,20865.0,0.139]
[1673708449339,0.02907205,20874.0,20868.0,0.40093389]
[1673708449588,0.02907205,20874.0,20869.0,0.17447366]
[1673708449833,0.02907205,20874.0,20870.0,0.17447366]
[1673708450080,0.02907205,20874.0,20871.0,0.17447366]
[1673708450326,0.02907205,20874.0,20872.0,0.17447366]
[1673708450573,0.02907205,20874.0,20873.0,0.17447366]
[1673708450833,0.02907205,20874.0,20872.0,0.479099]
[1673708451080,0.02907205,20874.0,20867.0,0.82]
[1673708451081,0.246008,20874.0,20868.0,1.04627218]
[1673708451325,0.19072595,20873.0,20868.0,0.40093389]
[1673708451600,0.19072595,20872.0,20868.0,0.40093389]
[1673708451846,0.19072595,20871.0,20868.0,0.40093389]
[1673708452111,0.19072595,20871.0,20868.0,0.53893389]
[1673708452361,0.02907205,20874.0,20868.0,0.40093389]
[1673708452603,0.219798,20874.0,20869.0,0.17447366]
[1673708452840,0.02907205,20874.0,20870.0,0.17447366]
[1673708453100,0.02907205,20874.0,20871.0,0.17447366]
[1673708453587,0.02907205,20874.0,20868.0,1.86508389]
[1673708453840,0.02907205,20874.0,20868.0,2.03955755]
[1673708453841,0.19072595,20873.0,20868.0,2.03955755]
[1673708454091,0.19072595,20873.0,20869.0,0.3]
[1673708454355,0.02907205,20874.0,20870.0,0.47720169]
[1673708454605,0.02907205,20874.0,20871.0,0.47447366]
[1673708454864,0.02907205,20874.0,20871.0,2.38906435]
[1673708455118,0.02907205,20874.0,20872.0,0.1]
[1673708455374,0.02907205,20874.0,20873.0,0.958174]
[1673708455631,0.02907205,20874.0,20873.0,0.479087]
[1673708455913,0.02907205,20874.0,20870.0,0.77542879]
[1673708455914,0.05528205,20874.0,20870.0,0.77542879]
[1673708456134,0.05528205,20874.0,20870.0,0.479147]
[1673708456135,0.19072595,20873.0,20870.0,0.479147]
[1673708456630,0.19072595,20873.0,20870.0,0.47901617]
[1673708456874,0.02907205,20874.0,20870.0,0.47901617]
[1673708457121,0.219798,20874.0,20870.0,0.47901617]
[1673708457375,0.219798,20874.0,20869.0,0.479168]
[1673708457618,0.219798,20874.0,20870.0,0.139]
[1673708457873,0.02907205,20874.0,20870.0,0.139]
[1673708458120,0.02907205,20874.0,20870.0,0.45247366]
[1673708458373,0.02907205,20874.0,20869.0,0.958344]
[1673708458622,0.219798,20874.0,20869.0,1.27081766]
[1673708458870,0.51142895,20873.0,20868.0,0.40093389]
[1673708459117,0.29072595,20872.0,20868.0,0.40093389]
[1673708459357,0.40394895,20871.0,20868.0,0.40093389]
[1673708459606,0.1,20869.0,20868.0,0.40093389]
[1673708459861,0.313223,20869.0,20868.0,0.40099389]
[1673708460094,0.792402,20869.0,20868.0,0.40099389]
[1673708460344,0.692402,20869.0,20868.0,0.54099389]
[1673708460596,0.693477,20869.0,20868.0,0.40099389]
[1673708460857,0.694477,20869.0,20868.0,0.50799389]
[1673708461103,0.693477,20869.0,20868.0,0.40099389]
[1673708461359,0.693477,20869.0,20868.0,0.54099389]
[1673708461360,0.694477,20869.0,20868.0,0.54099389]
[1673708461670,0.694477,20869.0,20868.0,0.40099389]
[1673708461934,0.215298,20869.0,20868.0,0.40099389]
[1673708462197,0.002075,20869.0,20868.0,0.43499389]
[1673708462745,0.002075,20869.0,20868.0,0.42999389]
[1673708463011,0.001075,20869.0,20868.0,0.42999389]
[1673708463278,0.002075,20869.0,20868.0,1.01519589]
[1673708463550,0.002075,20869.0,20868.0,1.49439789]
[1673708463821,0.50815205,20874.0,20868.0,2.00607324]
[1673708463822,0.02907205,20874.0,20868.0,2.00607324]
[1673708464299,0.02907205,20874.0,20871.0,0.47720169]
[1673708464554,0.02907205,20874.0,20872.0,0.3]
[1673708464810,0.02907205,20874.0,20872.0,1.13269366]
[1673708465059,0.03007205,20874.0,20873.0,0.87720169]
[1673708465338,0.03007205,20874.0,20873.0,1.06017535]
[1673708465592,0.01261446,20879.0,20873.0,1.06017535]
[1673708465593,0.01261446,20879.0,20874.0,0.14701325]
[1673708465854,0.00761446,20879.0,20875.0,1.25590092]
[1673708466118,0.00761446,20879.0,20876.0,1.65584944]
[1673708466370,0.00761446,20879.0,20877.0,1.25538066]
[1673708466667,0.019642,20881.0,20878.0,0.87947535]
[1673708466878,0.01155169,20888.0,20879.0,0.76017535]
[1673708467136,0.01155169,20888.0,20880.0,1.55513325]
[1673708467399,0.01155169,20888.0,20882.0,1.436616]
[1673708467652,0.01155169,20888.0,20884.0,0.1281]
[1673708467913,0.01155169,20888.0,20885.0,0.17447366]
[1673708468168,0.01155169,20888.0,20886.0,0.17447366]
[1673708468442,0.01155169,20888.0,20887.0,0.957532]
[1673708468966,0.01155169,20888.0,20887.0,1.77036817]
[1673708468971,0.01155169,20888.0,20887.0,1.89876817]
[1673708469253,0.01155169,20888.0,20887.0,1.73473369]
[1673708469504,0.01155169,20888.0,20887.0,0.957532]
[1673708469756,0.01155169,20888.0,20887.0,0.95730324]
[1673708470004,0.01155169,20888.0,20887.0,0.47853724]
[1673708470261,0.01155169,20888.0,20887.0,0.61653724]
[1673708470576,0.01155169,20888.0,20881.0,0.83574565]
[1673708470577,0.20227764,20888.0,20881.0,0.83574565]
[1673708470840,0.20227764,20888.0,20879.0,0.615236]
[1673708470841,0.03776169,20888.0,20887.0,0.139]
[1673708471094,0.03776169,20888.0,20883.0,0.478842]
[1673708471095,0.1,20887.0,20883.0,0.478842]
[1673708471366,0.19072595,20887.0,20883.0,0.478842]
[1673708471642,0.01155169,20888.0,20883.0,0.478842]
[1673708471932,0.01155169,20888.0,20882.0,0.47886]
[1673708472180,0.01155169,20888.0,20880.0,0.478924]
[1673708472181,0.19072595,20887.0,20880.0,0.478924]
[1673708472434,0.19072595,20886.0,20880.0,0.478924]
[1673708472686,0.19072595,20885.0,20877.0,0.478992]
[1673708472941,0.51142895,20884.0,20874.0,0.4038619]
[1673708473208,0.51142895,20884.0,20880.0,0.057]
[1673708473209,1.45649384,20883.0,20880.0,0.057]
[1673708473477,1.45649384,20883.0,20874.0,0.63614076]
[1673708473478,0.320703,20882.0,20874.0,0.63614076]
[1673708473754,0.88285695,20881.0,20880.0,0.05676983]
[1673708474007,0.88285695,20881.0,20872.0,0.62147256]
[1673708474008,0.1,20880.0,20872.0,0.59896514]
[1673708474266,0.1,20880.0,20870.0,0.14237456]
[1673708474267,0.99038895,20879.0,20874.0,0.056]
[1673708474530,0.51142895,20878.0,20874.0,0.056]
[1673708474778,0.213223,20877.0,20874.0,0.056]
[1673708475029,0.47896,20879.0,20870.0,0.62152356]
[1673708475304,0.19072595,20878.0,20874.0,0.005]
[1673708475560,0.1,20880.0,20874.0,0.005]
[1673708475830,0.016,20877.0,20874.0,0.009]
[1673708476089,0.19072595,20880.0,20877.0,0.016]
[1673708476338,1.1354,20883.0,20877.0,0.016]
[1673708476605,0.49902676,20886.0,20877.0,0.494984]
[1673708476606,0.478799,20886.0,20877.0,0.494984]
[1673708476857,0.578822,20885.0,20877.0,0.016]
[1673708477214,0.320703,20884.0,20877.0,0.016]
[1673708477365,0.51142895,20884.0,20877.0,0.016]
[1673708477614,0.88282095,20883.0,20877.0,0.016]
[1673708477864,0.320703,20882.0,20877.0,0.01577197]
[1673708478115,0.478872,20883.0,20877.0,0.01577197]
[1673708478366,0.19072595,20883.0,20877.0,0.01577197]
[1673708478618,0.19072595,20883.0,20877.0,0.02077197]
[1673708478906,0.19072595,20882.0,20877.0,0.01577197]
[1673708479178,0.19072595,20881.0,20877.0,0.01977197]
[1673708479429,0.51142895,20880.0,20877.0,0.01577197]
[1673708479697,0.1,20878.0,20877.0,0.02077197]
[1673708479941,0.420703,20878.0,20877.0,0.01577197]
[1673708480204,0.420703,20878.0,20877.0,0.01977197]
[1673708480469,0.01969803,20877.0,20867.0,0.35684865]
[1673708480724,0.19072595,20876.0,20868.0,1.31324734]
[1673708480976,0.19072595,20875.0,20869.0,0.62154056]
[1673708481230,0.19072595,20874.0,20869.0,0.479166]
[1673708481502,0.19072595,20873.0,20868.0,0.479197]
[1673708481774,0.19072595,20872.0,20868.0,0.95639869]
[1673708482014,0.19072595,20872.0,20868.0,0.95617007]
[1673708482515,0.014,20874.0,20869.0,0.48120169]
[1673708482776,0.014,20874.0,20872.0,0.48080856]
[1673708483052,0.014,20874.0,20873.0,1.73537569]
[1673708483280,0.47887,20883.0,20873.0,1.74387569]
[1673708483578,1.1915,20884.0,20873.0,1.74387569]
[1673708483579,1.1915,20884.0,20874.0,1.17616683]
[1673708483792,0.19072595,20883.0,20875.0,1.07616683]
[1673708484057,0.19072595,20882.0,20876.0,0.958012]
[1673708484328,0.19072595,20882.0,20876.0,0.479016]
[1673708484556,0.37683545,20882.0,20874.0,0.47905]
[1673708484859,0.1,20880.0,20872.0,0.48080856]
[1673708485078,0.957964,20878.0,20875.0,0.004]
[1673708485326,0.957964,20878.0,20867.0,0.00747099]
[1673708485327,0.1366,20876.0,20867.0,0.00747099]
[1673708485579,1.09576,20874.0,20867.0,0.00747099]
[1673708485845,0.80394895,20873.0,20867.0,0.00747099]
[1673708486161,0.4,20873.0,20872.0,0.00376872]
[1673708486391,0.79979,20873.0,20872.0,0.00376872]
[1673708486639,0.89979,20873.0,20872.0,0.00376872]
[1673708486934,0.89979,20873.0,20867.0,0.00747099]
[1673708487175,0.40394895,20872.0,20867.0,0.01047099]
[1673708487461,0.51142895,20871.0,20867.0,0.00747099]
[1673708487679,0.313223,20870.0,20867.0,0.00747099]
[1673708487939,0.320703,20869.0,20867.0,0.00747099]
[1673708488203,0.213223,20868.0,20867.0,0.01047099]
[1673708488448,1.66235295,20868.0,20867.0,0.00747099]
[1673708488697,1.471627,20868.0,20867.0,0.00847099]
[1673708488955,1.471627,20868.0,20867.0,0.00747099]
[1673708489212,1.579292,20868.0,20867.0,0.00847099]
[1673708489713,0.00739901,20867.0,20861.0,0.00826979]
[1673708490018,1.46996095,20866.0,20861.0,0.00826979]
[1673708490216,0.70394895,20865.0,20861.0,0.00826979]
[1673708490463,0.70394895,20865.0,20861.0,0.008041]
[1673708490464,0.51142895,20864.0,20861.0,0.008041]
[1673708490741,0.66224847,20863.0,20861.0,0.008041]
[1673708490981,1.279383,20862.0,20861.0,0.008041]
[1673708491256,0.007999,20861.0,20857.0,0.00830383]
[1673708491501,0.007999,20861.0,20853.0,0.00856017]
[1673708491502,0.1366,20858.0,20853.0,0.00856017]
[1673708491763,0.67642764,20860.0,20853.0,0.00856017]
[1673708491764,0.40394895,20857.0,20853.0,0.00856017]
[1673708492032,0.51142895,20856.0,20853.0,0.00856017]
[1673708492268,0.19072595,20856.0,20853.0,0.00856017]
[1673708492578,0.1,20855.0,20853.0,0.00856017]
[1673708492777,0.479445,20858.0,20853.0,0.00856017]
[1673708492778,0.320703,20854.0,20853.0,0.00856017]
[1673708493033,0.19072595,20854.0,20853.0,0.00856017]
[1673708493311,0.99095295,20854.0,20853.0,0.00856017]
[1673708493568,0.320703,20854.0,20853.0,0.00856017]
[1673708493852,0.31269847,20854.0,20853.0,0.00856017]
[1673708494122,0.20672595,20854.0,20853.0,0.00856017]
[1673708494375,0.53762695,20854.0,20853.0,0.00856017]
[1673708494659,0.462901,20854.0,20853.0,0.00767003]
[1673708494903,0.926425,20854.0,20853.0,0.00767003]
[1673708495167,0.931425,20854.0,20853.0,0.00767003]
[1673708495419,1.4820897,20854.0,20853.0,0.00767003]
[1673708495678,1.70862669,20854.0,20841.0,0.60027126]
[1673708495930,0.00719192,20852.0,20839.0,0.479868]
[1673708496181,1.438959,20849.0,20839.0,0.47986]
[1673708496466,0.39595795,20848.0,20840.0,0.95703369]
[1673708496694,0.19072595,20847.0,20840.0,0.479832]
[1673708496942,0.19072595,20846.0,20840.0,0.479832]
[1673708497208,0.19072595,20845.0,20839.0,0.47986]
[1673708497451,0.19072595,20844.0,20838.0,0.479877]
[1673708497747,0.19072595,20843.0,20838.0,0.479877]
[1673708497952,0.19072595,20842.0,20838.0,0.479877]
[1673708498199,0.19072595,20841.0,20838.0,0.479877]
[1673708498441,0.19072595,20841.0,20837.0,1.395515]
[1673708498691,0.19072595,20840.0,20836.0,0.479929]
[1673708498949,0.19072595,20839.0,20834.0,2.63197189]
[1673708499212,0.57978,20843.0,20834.0,0.02947189]
[1673708499213,0.19072595,20838.0,20834.0,0.02947189]
[1673708499466,0.19072595,20837.0,20832.0,1.421616]
[1673708499765,0.19072595,20837.0,20829.0,0.480077]
[1673708499766,0.67067395,20836.0,20829.0,0.480077]
[1673708500002,0.479928,20837.0,20830.0,0.48007]
[1673708500003,0.19072595,20835.0,20830.0,0.48007]
[1673708500298,0.47982,20842.0,20831.0,0.50966311]
[1673708500543,0.47982,20842.0,20834.0,0.959954]
[1673708500544,0.19072595,20842.0,20834.0,0.959954]
[1673708500797,0.014,20836.0,20835.0,0.03246142]
[1673708501055,0.479776,20844.0,20834.0,0.959954]
[1673708501056,0.60021863,20843.0,20834.0,0.959954]
[1673708501311,0.479776,20844.0,20835.0,0.3]
[1673708501600,1.07998726,20846.0,20836.0,0.60966311]
[1673708501856,0.19072595,20846.0,20837.0,1.77796111]
[1673708502106,0.013,20842.0,20839.0,0.1]
[1673708502384,1.194,20849.0,20840.0,1.92523969]
[1673708502637,0.013,20844.0,20841.0,0.03246142]
[1673708502958,0.013,20844.0,20843.0,0.959536]
[1673708503207,0.479561,20853.0,20843.0,0.959536]
[1673708503208,1.20319192,20852.0,20843.0,1.268036]
[1673708503466,0.19072595,20851.0,20844.0,0.03246142]
[1673708503724,0.19072595,20851.0,20845.0,0.03246142]
[1673708503725,0.014,20849.0,20845.0,0.03246142]
[1673708504729,1.68277092,20852.0,20845.0,0.03246142]
[1673708504988,0.015,20851.0,20846.0,0.03246142]
[1673708505234,0.19072595,20851.0,20846.0,0.03246142]
[1673708505508,0.015,20849.0,20843.0,1.395574]
[1673708505745,0.39595795,20848.0,20843.0,1.395574]
[1673708505996,0.1,20847.0,20841.0,2.6025]
[1673708506269,0.75566383,20842.0,20840.0,1.395635]
[1673708506500,0.75566383,20842.0,20840.0,0.479835]
[1673708506756,0.94638978,20842.0,20840.0,0.479835]
[1673708506996,0.75566383,20842.0,20840.0,0.479835]
[1673708507262,0.75566383,20842.0,20841.0,0.57720169]
[1673708507560,0.75566383,20842.0,20841.0,1.53684769]
[1673708507783,0.75566383,20842.0,20841.0,1.83684769]
[1673708508095,0.75566383,20842.0,20841.0,1.84534769]
[1673708508303,0.76966383,20842.0,20841.0,1.87481958]
[1673708508564,0.75553245,20842.0,20841.0,1.87481958]
[1673708508820,0.76953245,20842.0,20841.0,1.87481958]
[1673708509081,0.76953245,20842.0,20841.0,1.77481958]
[1673708509385,0.78253245,20842.0,20841.0,1.87481958]
[1673708510401,0.78253245,20842.0,20841.0,1.77481958]
[1673708510649,0.78253245,20842.0,20841.0,1.87481958]
[1673708510892,0.78253245,20842.0,20841.0,1.77481958]
[1673708511673,0.9732584,20842.0,20841.0,0.98911789]
[1673708511924,0.78253245,20842.0,20841.0,0.959646]
[1673708512420,0.74117245,20842.0,20841.0,0.959646]
[1673708513240,0.75517245,20842.0,20841.0,1.43684769]
[1673708513920,0.75517245,20842.0,20841.0,1.44534769]
[1673708514166,0.75517245,20842.0,20841.0,0.968146]
[1673708514403,0.75517245,20842.0,20841.0,1.268146]
[1673708514642,0.75517245,20842.0,20841.0,0.968146]
[1673708515133,0.75517245,20842.0,20841.0,1.44534769]
[1673708515983,0.75517245,20842.0,20841.0,1.74534769]
[1673708516488,1.20319192,20852.0,20842.0,0.16492123]
[1673708516745,1.20319192,20852.0,20843.0,1.11685001]
[1673708517023,1.39391787,20852.0,20845.0,1.91885959]
[1673708517291,1.20319192,20852.0,20846.0,0.81816311]
[1673708517537,1.20319192,20852.0,20847.0,1.94866111]
[1673708517825,0.02119192,20852.0,20848.0,0.81816311]
[1673708518085,0.02119192,20852.0,20849.0,1.94856511]
[1673708518388,0.00719192,20852.0,20850.0,0.30499]
[1673708518639,0.00719192,20852.0,20851.0,0.959186]
[1673708518640,0.02119192,20852.0,20851.0,0.959186]
[1673708518881,0.00719192,20852.0,20851.0,0.967686]
[1673708520163,0.00819192,20852.0,20851.0,0.967686]
[1673708520433,0.00719192,20852.0,20851.0,0.959186]
[1673708520666,0.00819192,20852.0,20851.0,1.099186]
[1673708521421,0.00719192,20852.0,20851.0,0.959186]
[1673708521668,0.00819192,20852.0,20851.0,1.100186]
[1673708521919,0.00719192,20852.0,20851.0,0.959186]
[1673708522234,0.00719192,20852.0,20851.0,0.963186]
[1673708522693,0.00719192,20852.0,20851.0,1.263186]
[1673708523193,0.00719192,20852.0,20851.0,1.74488769]
[1673708523506,0.01119192,20852.0,20851.0,2.05284911]
[1673708523711,0.01119192,20852.0,20851.0,2.87923343]
[1673708523969,0.01017836,20856.0,20851.0,2.87923343]
[1673708524214,0.01017836,20856.0,20852.0,0.79339773]
[1673708524461,0.20090431,20856.0,20853.0,0.57720169]
[1673708524729,0.01017836,20856.0,20854.0,0.3]
[1673708524963,0.01017836,20856.0,20855.0,0.959002]
[1673708525219,0.01017836,20856.0,20855.0,1.259002]
[1673708525504,0.01017836,20856.0,20855.0,1.267502]
[1673708526244,0.01017836,20856.0,20855.0,1.367502]
[1673708526487,0.01017836,20856.0,20855.0,1.408502]
[1673708526776,0.01017836,20856.0,20855.0,1.267502]
[1673708527014,0.01017836,20856.0,20855.0,1.88470369]
[1673708527261,0.01017836,20856.0,20855.0,1.74470369]
[1673708527515,0.01017836,20856.0,20855.0,1.88470369]
[1673708529153,0.01017836,20856.0,20855.0,1.74470369]
[1673708529419,0.01317836,20856.0,20855.0,1.88270369]
[1673708530436,0.01317836,20856.0,20855.0,1.405502]
[1673708530696,0.01317836,20856.0,20855.0,1.397002]
[1673708531501,0.01317836,20856.0,20855.0,1.097002]
[1673708532031,0.01317836,20856.0,20852.0,0.00769604]
[1673708532032,0.22711431,20856.0,20852.0,0.48725804]
[1673708532279,0.22711431,20856.0,20855.0,0.134]
[1673708532280,0.04038836,20856.0,20855.0,0.134]
[1673708532526,0.36107936,20856.0,20855.0,0.134]
[1673708532778,0.46107936,20856.0,20855.0,0.134]
[1673708533022,0.45707936,20856.0,20852.0,0.00769604]
[1673708533276,0.305232,20855.0,20852.0,0.04869604]
[1673708533522,0.320691,20854.0,20852.0,0.00769604]
[1673708533775,0.205232,20853.0,20852.0,0.00769604]
[1673708534274,0.22717836,20856.0,20852.0,0.00769604]
[1673708534546,0.12717836,20856.0,20852.0,0.51972746]
[1673708534790,0.320691,20855.0,20852.0,0.51972746]
[1673708535058,0.205232,20854.0,20852.0,0.52826604]
[1673708535307,0.32990431,20856.0,20852.0,0.52826604]
[1673708535555,0.320691,20855.0,20852.0,0.00769604]
[1673708535813,0.305232,20854.0,20852.0,0.00769604]
[1673708536059,0.320691,20853.0,20852.0,0.00769604]
[1673708536819,0.800238,20853.0,20852.0,0.00769604]
[1673708537064,0.900238,20853.0,20852.0,0.04869604]
[1673708537823,0.900238,20853.0,20852.0,0.00769604]
[1673708538069,1.392785,20853.0,20852.0,0.03209604]
[1673708538355,1.392785,20853.0,20852.0,0.01689604]
[1673708538668,0.1,20852.0,20846.0,0.479694]
[1673708538870,0.39595795,20851.0,20846.0,0.479694]
[1673708539133,0.39595795,20851.0,20844.0,0.00934648]
[1673708539134,0.61141695,20850.0,20844.0,0.48908748]
[1673708539390,0.19072595,20849.0,20844.0,0.48908748]
[1673708540150,0.67036895,20849.0,20844.0,0.48908748]
[1673708540412,0.19072595,20848.0,20844.0,0.48908748]
[1673708540664,0.19072595,20847.0,20846.0,0.003]
[1673708540906,0.579662,20848.0,20844.0,0.00934648]
[1673708541156,0.61141695,20847.0,20844.0,0.01234648]
[1673708541413,0.205232,20846.0,20844.0,0.00934648]
[1673708541672,0.320691,20845.0,20844.0,0.00934648]
[1673708542174,0.320691,20845.0,20844.0,0.01234648]
[1673708542431,0.205232,20845.0,20844.0,0.01234648]
[1673708542693,0.221232,20845.0,20844.0,0.01534648]
[1673708542955,0.321232,20845.0,20844.0,0.01534648]
[1673708543207,0.221232,20845.0,20844.0,0.01534648]
[1673708543451,0.016,20845.0,20844.0,0.5275619]
[1673708543709,1.625924,20850.0,20844.0,0.96885448]
[1673708543954,0.013,20845.0,20844.0,0.97185448]
[1673708544449,1.1463,20850.0,20844.0,1.26885448]
[1673708544697,0.016,20845.0,20844.0,0.97185448]
[1673708544948,0.1,20849.0,20844.0,0.96885448]
[1673708545200,0.013,20845.0,20844.0,1.0043159]
[1673708545445,0.013,20845.0,20844.0,0.97185448]
[1673708545699,0.013,20845.0,20844.0,1.27485448]
[1673708546685,0.29072595,20849.0,20844.0,0.96885448]
[1673708546937,0.518941,20845.0,20844.0,0.003]
[1673708547184,1.319363,20845.0,20844.0,0.003]
[1673708547434,0.839632,20845.0,20844.0,0.003]
[1673708547693,0.826632,20845.0,20842.0,0.16492123]
[1673708547941,0.1,20843.0,20842.0,0.16492123]
[1673708548201,0.320691,20843.0,20842.0,0.16492123]
[1673708548447,0.420691,20843.0,20842.0,0.16492123]
[1673708549470,0.900468,20843.0,20842.0,0.16492123]
[1673708549716,1.032468,20843.0,20842.0,0.16492123]
[1673708549972,0.900468,20843.0,20842.0,0.16492123]
[1673708550225,1.035468,20843.0,20842.0,0.16492123]
[1673708550726,0.16492,20842.0,20838.0,0.009227]
[1673708550970,1.62380301,20841.0,20838.0,0.009227]
[1673708551229,0.320691,20840.0,20838.0,0.009227]
[1673708551481,1.16497,20839.0,20838.0,0.009227]
[1673708551737,0.205232,20839.0,20838.0,0.009227]
[1673708552247,0.74801706,20841.0,20838.0,0.009227]
[1673708552248,0.74801706,20841.0,20838.0,0.004227]
[1673708552501,0.320691,20840.0,20838.0,0.004227]
[1673708552742,0.205232,20839.0,20838.0,0.004227]
[1673708552979,0.26818906,20841.0,20838.0,0.007227]
[1673708552980,0.27518906,20841.0,20838.0,0.007227]
[1673708553245,0.27518906,20841.0,20838.0,1.29947242]
[1673708553498,0.27518906,20841.0,20838.0,0.007227]
[1673708553499,0.49343392,20841.0,20838.0,0.007227]
[1673708553756,0.51141695,20840.0,20838.0,0.004227]
[1673708554008,1.751839,20839.0,20838.0,0.007227]
[1673708554284,1.744839,20839.0,20838.0,0.004227]
[1673708554519,1.744839,20839.0,20836.0,0.0099407]
[1673708554520,0.004193,20838.0,20836.0,0.0099407]
[1673708554775,0.320691,20837.0,20836.0,0.0099407]
[1673708555022,2.160436,20837.0,20836.0,0.0099407]
[1673708555278,1.7336409,20837.0,20836.0,4.07e-05]
[1673708555531,0.1,20836.0,20835.0,7e-06]
[1673708555776,5.3e-05,20835.0,20834.0,3.21e-06]
[1673708556020,1.265205,20835.0,20834.0,3.21e-06]
[1673708556268,1.565205,20835.0,20834.0,3.21e-06]
[1673708556514,1.265205,20835.0,20834.0,3.21e-06]
[1673708556761,1.565205,20835.0,20834.0,3.21e-06]
[1673708557026,1.701205,20835.0,20834.0,3.21e-06]
[1673708557287,2.17840669,20835.0,20834.0,3.21e-06]
[1673708557548,2.02413577,20835.0,20834.0,3.21e-06]
[1673708558049,2.04007577,20835.0,20834.0,3.21e-06]
[1673708558336,2.51727746,20835.0,20834.0,3.21e-06]
[1673708558599,2.51727746,20835.0,20831.0,8.11e-06]
[1673708558600,6e-05,20833.0,20831.0,8.11e-06]
[1673708558891,2.07083169,20832.0,20829.0,0.01112321]
[1673708559099,0.20523,20831.0,20829.0,0.01112321]
[1673708559350,0.960152,20830.0,20829.0,0.01112321]
[1673708559597,0.685306,20830.0,20829.0,0.01112321]
[1673708560339,0.8498459,20830.0,20829.0,2.321e-05]
[1673708560587,0.1,20829.0,20826.0,0.25]
[1673708560839,1.63109195,20828.0,20826.0,0.25]
[1673708561090,0.20523,20827.0,20826.0,0.24]
[1673708561629,0.20523,20827.0,20825.0,1e-08]
[1673708561877,0.960244,20828.0,20825.0,1e-08]
[1673708562118,0.34123,20827.0,20825.0,1e-08]
[1673708562388,0.480122,20828.0,20822.0,0.47780618]
[1673708562632,0.32572595,20827.0,20822.0,0.5102676]
[1673708562876,0.19072595,20826.0,20822.0,0.47780618]
[1673708563381,0.1,20830.0,20822.0,0.5102676]
[1673708563382,0.480091,20830.0,20822.0,0.5102676]
[1673708563632,0.480091,20830.0,20823.0,0.03246142]
[1673708563633,0.67080495,20830.0,20823.0,0.03246142]
[1673708563882,0.67080495,20830.0,20826.0,0.25]
[1673708564127,0.480079,20830.0,20827.0,0.03246142]
[1673708564385,0.480031,20832.0,20827.0,0.03246142]
[1673708564632,0.20523,20830.0,20827.0,0.03246142]
[1673708564891,0.1,20829.0,20826.0,0.25]
[1673708565136,0.20523,20828.0,20826.0,0.25]
[1673708565440,0.580102,20829.0,20826.0,0.25]
[1673708565700,0.20523,20828.0,20826.0,0.245]
[1673708565952,0.480102,20829.0,20826.0,0.245]
[1673708565953,0.80584695,20829.0,20826.0,0.245]
[1673708566204,1.165483,20828.0,20826.0,0.245]
[1673708566522,1.395253,20828.0,20826.0,0.245]
[1673708566712,0.30523,20827.0,20826.0,0.245]
[1673708566962,1.26552,20827.0,20826.0,0.245]
[1673708567207,0.21721681,20825.0,20821.0,0.01167798]
[1673708567458,0.67094395,20824.0,20821.0,0.01167798]
[1673708567709,0.20523,20823.0,20821.0,0.01167798]
[1673708567959,0.67097295,20823.0,20821.0,0.01167798]
[1673708568200,0.20523,20822.0,20821.0,0.01167798]
[1673708568419,0.480247,20823.0,20821.0,0.01167798]
[1673708568715,0.30523,20822.0,20821.0,0.01167798]
[1673708568981,0.20523,20822.0,20821.0,0.01167798]
[1673708569230,1.165752,20822.0,20821.0,0.01167798]
[1673708569731,0.960522,20822.0,20821.0,0.01167798]
[1673708570014,0.480261,20822.0,20821.0,0.01167798]
[1673708570268,0.480259,20823.0,20821.0,0.01167798]
[1673708570526,0.480229,20824.0,20821.0,0.01167798]
[1673708570776,0.537241,20823.0,20821.0,0.01167798]
[1673708571026,0.20523,20822.0,20821.0,0.01167798]
[1673708571279,0.135,20822.0,20821.0,0.01167798]
[1673708571568,0.21721681,20825.0,20821.0,0.49195998]
[1673708571847,0.21721681,20825.0,20821.0,0.5244214]
[1673708571848,0.135,20824.0,20821.0,0.5244214]
[1673708572095,0.21721681,20825.0,20821.0,0.01167798]
[1673708572346,1.570267,20827.0,20821.0,0.01167798]